bitfinex/quotes_ETHUSD_20240825
["timestamp","ask_amount","ask_price","bid_price","bid_amount"]
[1724596229047,0.55,2767.8,2767.5,2.50332035]
[1724596229246,7.46,2768.0,2767.6,3.61322]
[1724596229457,3.61259,2768.1,2767.5,6.11664035]
[1724596229790,3.61259,2768.1,2767.6,0.98471238]
[1724596230686,3.61274,2768.0,2767.6,0.98471238]
[1724596230855,0.55,2767.9,2767.6,0.66861238]
[1724596231202,0.55,2767.9,2767.6,0.51721238]
[1724596231545,0.55,2767.9,2767.5,2.50332035]
[1724596231747,0.55,2767.9,2767.4,0.1171035]
[1724596231748,4.87509279,2767.8,2767.4,0.1171035]
[1724596232048,0.55,2767.7,2767.4,0.1171035]
[1724596233281,1.26209279,2767.6,2767.4,0.1171035]
[1724596233487,0.55,2767.5,2767.4,0.1171035]
[1724596233686,4.16336,2767.5,2767.4,0.1171035]
[1724596233893,4.05566,2767.5,2767.4,0.1171035]
[1724596235058,8.99282645,2767.5,2767.4,0.1171035]
[1724596236956,10.25491924,2767.5,2767.4,0.1171035]
[1724596240559,12.15011363,2767.5,2767.4,0.1171035]
[1724596240994,6.64155924,2767.5,2767.4,0.1171035]
[1724596241194,5.31775279,2767.5,2767.4,0.1171035]
[1724596242529,8.93111279,2767.5,2767.4,0.1171035]
[1724596244622,10.82605139,2767.5,2767.4,0.1171035]
[1724596244822,8.93111279,2767.5,2767.4,0.1171035]
[1724596245021,11.31971279,2767.5,2767.4,0.1171035]
[1724596245213,14.53611653,2767.5,2767.4,0.1171035]
[1724596246820,12.64117793,2767.5,2767.4,0.1171035]
[1724596247014,14.53614902,2767.5,2767.4,0.1171035]
[1724596247930,12.64117793,2767.5,2767.4,0.1171035]
[1724596248128,14.53604957,2767.5,2767.4,0.1171035]
[1724596248433,12.14744957,2767.5,2767.4,0.1171035]
[1724596249131,10.25257793,2767.5,2767.4,0.1171035]
[1724596250289,12.14744957,2767.5,2767.4,0.1171035]
[1724596251712,14.53575884,2767.5,2767.4,0.1171035]
[1724596252091,18.14911884,2767.5,2767.4,0.1171035]
[1724596252289,19.25453793,2767.5,2767.4,0.1171035]
[1724596255655,21.52803502,2767.5,2767.4,0.1171035]
[1724596255843,22.86789793,2767.5,2767.4,0.1171035]
[1724596259556,22.86789793,2767.5,2767.4,3.5e-06]
[1724596261119,21.52572816,2767.5,2767.4,3.5e-06]
[1724596262150,22.86789793,2767.5,2767.4,3.5e-06]
[1724596262353,25.1386374,2767.5,2767.4,3.5e-06]
[1724596263636,22.86789793,2767.5,2767.4,3.5e-06]
[1724596266545,22.86789793,2767.5,2767.4,3.5e-06]
[1724596267065,25.13759109,2767.5,2767.4,3.5e-06]
[1724596267227,25.13743104,2767.5,2767.4,3.5e-06]
[1724596269537,25.13704183,2767.5,2767.4,3.5e-06]
[1724596271075,22.86789793,2767.5,2767.4,3.5e-06]
[1724596273059,22.86789793,2767.5,2765.7,2.4355]
[1724596273060,3.61443,2766.7,2765.7,2.4355]
[1724596273260,3.61515,2766.2,2765.9,2.4355]
[1724596273672,7.23031,2766.2,2765.9,2.4355]
[1724596273989,3.61515,2766.2,2765.9,2.4355]
[1724596274286,0.55,2766.1,2765.9,2.739563]
[1724596274895,4.16528,2766.1,2765.9,2.739563]
[1724596275051,4.16528,2766.1,2765.9,2.4355]
[1724596279584,9.04265279,2766.1,2765.9,2.4355]
[1724596279779,5.42737279,2766.1,2765.9,2.4355]
[1724596280001,9.04266279,2766.1,2765.9,2.4355]
[1724596280209,5.42737279,2766.1,2765.9,2.4355]
[1724596280613,3.61532,2766.0,2765.9,2.4355]
[1724596280917,4.16532,2766.0,2765.9,2.4355]
[1724596282721,3.61585,2765.6,2765.5,2.4355]
[1724596282948,5.42794279,2765.6,2765.5,2.4355]
[1724596283241,0.55,2765.6,2765.3,2.4355]
[1724596283380,4.16606,2765.5,2765.3,2.4355]
[1724596283779,4.16606,2765.5,2765.3,2.67905096]
[1724596286827,7.78213,2765.5,2765.3,2.4355]
[1724596286990,4.16606,2765.5,2765.3,2.4355]
[1724596289132,4.16606,2765.5,2765.2,9.64e-06]
[1724596289133,7.23248,2765.3,2765.2,9.64e-06]
[1724596289536,0.55,2765.3,2765.2,9.64e-06]
[1724596289737,3.6156,2765.8,2765.3,2.3317]
[1724596289942,0.55,2765.7,2765.4,0.23317096]
[1724596290800,4.16575,2765.7,2765.4,0.23317096]
[1724596291035,3.61588,2765.6,2765.3,2.3317]
[1724596291250,5.42809279,2765.5,2765.3,2.3317]
[1724596291402,4.87809279,2765.5,2765.3,2.3317]
[1724596291601,0.55,2765.4,2765.2,9.64e-06]
[1724596292643,0.55,2765.6,2765.2,9.64e-06]
[1724596292945,4.16585,2765.6,2765.2,9.64e-06]
[1724596293316,1.26209279,2765.5,2765.2,9.64e-06]
[1724596293640,0.55,2765.4,2765.2,9.64e-06]
[1724596296413,0.55,2765.5,2765.2,9.64e-06]
[1724596297006,3.61624,2765.3,2765.2,9.64e-06]
[1724596297202,4.16624,2765.3,2765.2,9.64e-06]
[1724596298443,5.42833279,2765.3,2765.2,9.64e-06]
[1724596303623,6.33278007,2765.3,2765.2,9.64e-06]
[1724596304477,3.99362764,2765.9,2765.2,2.25950964]
[1724596304610,3.37805764,2765.9,2765.3,3.61614]
[1724596304809,6.99352764,2765.9,2765.2,2.25950964]
[1724596305046,6.99352764,2765.9,2765.3,0.71380224]
[1724596305047,3.61562,2765.8,2765.3,0.71380224]
[1724596305351,3.61562,2765.8,2765.2,2.25950964]
[1724596305352,3.6158,2765.7,2765.2,2.25950964]
[1724596306117,0.55,2765.6,2765.2,2.25950964]
[1724596307446,3.616,2765.5,2765.2,2.25950964]
[1724596307626,4.1662,2765.4,2765.2,9.64e-06]
[1724596307812,3.61624,2765.3,2765.2,9.64e-06]
[1724596308014,4.16624,2765.3,2765.2,9.64e-06]
[1724596312729,0.55,2765.3,2765.2,9.64e-06]
[1724596312929,0.55,2765.4,2765.2,9.64e-06]
[1724596313317,3.61577,2765.7,2765.2,0.2259606]
[1724596313520,6.74273825,2766.9,2765.2,0.2259606]
[1724596313521,3.61496,2766.3,2765.7,2.2595]
[1724596313723,3.61476,2766.5,2766.0,1.26209279]
[1724596313972,3.61476,2766.5,2765.9,2.2595]
[1724596313973,3.61481,2766.4,2765.9,2.2595]
[1724596315759,3.61476,2766.5,2765.9,3.33478328]
[1724596315935,0.55,2766.4,2765.9,3.33478328]
[1724596316130,0.55,2766.4,2765.9,2.2595]
[1724596316462,7.46,2766.6,2765.9,2.2595]
[1724596316463,3.6151,2766.2,2765.9,2.2595]
[1724596317336,4.16472,2766.5,2765.9,2.2595]
[1724596317516,4.16472,2766.5,2765.9,5.87494]
[1724596319140,0.55,2766.5,2766.1,3.61518]
[1724596319346,3.61447,2766.7,2766.1,3.61518]
[1724596319347,0.55,2766.6,2766.2,2.62824807]
[1724596319956,0.55,2766.6,2766.2,6.24328807]
[1724596320121,11.07419,2766.9,2766.2,2.62824807]
[1724596320122,0.55,2766.8,2766.2,2.62824807]
[1724596320517,0.55,2766.8,2766.2,6.24330807]
[1724596320965,6.61394,2767.1,2766.4,3.61475]
[1724596321265,3.61364,2767.3,2766.5,6.235525]
[1724596321472,3.61364,2767.3,2766.6,0.07228335]
[1724596322188,3.61341,2767.5,2766.7,2.2595]
[1724596322467,3.61341,2767.5,2766.9,2.2595]
[1724596322468,3.61337,2767.5,2766.9,2.2595]
[1724596323187,12.21,2767.6,2766.9,2.2595]
[1724596323354,3.61385,2767.2,2766.6,2.2595]
[1724596324128,3.61378,2767.2,2766.6,2.2595]
[1724596324628,0.55,2767.1,2766.6,2.2595]
[1724596325573,0.55,2767.1,2766.6,5.87403]
[1724596325777,0.55,2767.2,2766.6,5.87403]
[1724596325930,0.55,2767.2,2766.6,6.822903]
[1724596326133,0.55,2767.2,2766.7,6.04471]
[1724596327029,12.21,2767.6,2766.8,3.61425]
[1724596327234,12.21,2767.6,2767.0,6.04421]
[1724596327535,0.55,2767.5,2767.0,2.4303]
[1724596327743,4.16338,2767.5,2767.0,2.4303]
[1724596330226,3.0,2767.9,2767.2,3.61375]
[1724596330450,3.0,2767.9,2767.3,2.4303]
[1724596330451,3.61293,2767.9,2767.3,2.4303]
[1724596331127,3.61293,2767.9,2767.3,6.04388]
[1724596331365,3.61293,2767.9,2767.3,6.648268]
[1724596331737,0.55,2767.8,2767.3,6.648268]
[1724596331941,0.55,2767.8,2767.3,6.648228]
[1724596332172,5.87978,2768.4,2767.3,6.648228]
[1724596332173,3.61216,2768.5,2767.8,3.61288]
[1724596332374,3.61216,2768.5,2767.9,2.4303]
[1724596333074,3.61216,2768.5,2767.9,6.04313]
[1724596333676,11.07182,2768.7,2768.0,3.61268]
[1724596334148,11.07182,2768.7,2768.1,3.61257]
[1724596334979,0.55,2768.6,2768.1,7.22506]
[1724596335206,3.61131,2769.1,2768.4,3.61206]
[1724596335499,5.3063,2769.1,2768.3,3.61229]
[1724596335635,3.61143,2769.0,2768.4,3.6844054]
[1724596336076,7.46,2769.2,2767.9,0.97284687]
[1724596336077,11.07116,2769.2,2768.6,6.04221]
[1724596337324,11.07061,2769.7,2768.8,3.61166]
[1724596337529,6.61074,2769.6,2768.9,2.4303]
[1724596338128,12.4422024,2769.7,2768.9,2.4303]
[1724596338336,12.4422024,2769.7,2769.0,3.61132]
[1724596338986,16.0528124,2769.7,2769.0,3.61132]
[1724596339195,12.4422024,2769.7,2769.0,3.61132]
[1724596339406,3.61063,2769.6,2769.0,4.6370576]
[1724596339608,11.07061,2769.7,2769.0,4.6370576]
[1724596340037,11.07061,2769.7,2769.2,2.4303]
[1724596340038,3.61061,2769.7,2769.2,2.4303]
[1724596340189,7.2206,2769.9,2769.2,2.4303]
[1724596340524,3.61049,2769.7,2769.3,0.07221425]
[1724596340710,3.61049,2769.7,2769.2,3.46952414]
[1724596341105,3.61049,2769.7,2769.2,3.46952311]
[1724596341520,7.22062,2769.9,2769.2,3.39730989]
[1724596341842,3.61027,2769.9,2769.2,3.39730989]
[1724596342152,3.61027,2769.9,2769.2,7.00842989]
[1724596342359,3.61027,2769.9,2769.3,0.70084299]
[1724596342634,7.22062,2769.9,2769.3,0.70084299]
[1724596342844,3.61027,2769.9,2769.3,0.70084299]
[1724596345113,3.61027,2769.9,2769.3,4.31184299]
[1724596346514,3.61027,2769.9,2769.4,2.3703]
[1724596346716,7.22008,2770.1,2769.5,0.74042139]
[1724596347010,0.55,2770.0,2769.5,0.74042139]
[1724596347207,0.55,2770.0,2769.6,2.3703]
[1724596347802,3.61002,2770.1,2769.6,2.3703]
[1724596347997,0.55,2770.0,2769.6,2.3703]
[1724596348253,0.55,2770.0,2769.5,4.35115139]
[1724596348254,11.06952,2770.5,2769.8,2.3703]
[1724596348424,3.60959,2770.4,2769.8,2.3703]
[1724596348824,3.60959,2770.4,2769.8,5.98064]
[1724596349024,3.60959,2770.4,2769.8,2.3703]
[1724596351140,3.60973,2770.3,2769.8,2.3703]
[1724596352227,3.61,2770.1,2769.8,2.3703]
[1724596352461,0.55,2770.0,2769.5,3.0385143]
[1724596353169,0.55,2770.0,2769.5,6.6492443]
[1724596354843,0.55,2770.0,2769.5,2.3703]
[1724596355265,0.55,2770.0,2769.6,3.61061]
[1724596355463,4.15985,2770.2,2769.6,3.61061]
[1724596356039,4.15985,2770.2,2769.5,5.98098]
[1724596356556,0.55,2770.2,2769.8,2.3703]
[1724596357970,4.1599,2770.2,2769.8,2.3703]
[1724596360885,4.1599,2770.2,2769.5,5.98101]
[1724596361086,4.1599,2770.2,2769.6,0.598101]
[1724596361750,3.61005,2770.1,2769.6,0.598101]
[1724596362560,3.61012,2770.0,2769.6,0.598101]
[1724596362885,3.61012,2770.0,2769.5,2.3703]
[1724596363613,0.55,2770.2,2769.5,2.3703]
[1724596363751,3.61051,2769.7,2769.1,5.98147]
[1724596363950,3.61051,2769.7,2769.1,7.674768]
[1724596365383,3.61051,2769.7,2769.1,4.063598]
[1724596365755,3.61051,2769.7,2769.1,2.3703]
[1724596366122,3.61076,2769.5,2769.1,2.3703]
[1724596366479,3.61076,2769.5,2768.9,3.61144]
[1724596366876,3.61098,2769.4,2768.8,2.4713]
[1724596367077,3.61105,2769.3,2768.8,2.4713]
[1724596367280,3.61105,2769.3,2768.8,3.440773]
[1724596368078,3.61087,2769.5,2768.8,7.052413]
[1724596368319,0.55,2769.4,2768.8,7.052413]
[1724596368504,0.55,2769.4,2768.9,1.0664123]
[1724596368817,0.55,2769.5,2768.9,1.0664123]
[1724596369020,3.61053,2769.7,2768.9,1.0664123]
[1724596369229,2.2593,2770.1,2769.3,2.4713]
[1724596369520,3.61045,2769.8,2769.3,2.4713]
[1724596370682,7.22092,2769.8,2769.3,2.4713]
[1724596371001,3.6105,2769.7,2769.3,2.4713]
[1724596371679,3.61018,2770.0,2769.3,3.079548]
[1724596371882,0.55,2769.9,2769.3,3.079548]
[1724596372819,3.61045,2769.8,2769.3,3.079548]
[1724596372983,3.6106,2769.7,2769.3,3.079548]
[1724596373317,3.61045,2769.8,2769.3,2.4713]
[1724596373318,3.6107,2769.6,2769.3,2.4713]
[1724596375022,3.6107,2769.6,2769.0,2.4713]
[1724596375235,3.6107,2769.6,2768.5,10.95202]
[1724596375236,3.61089,2769.4,2768.8,2.4713]
[1724596375417,3.61089,2769.4,2768.8,3.079602]
[1724596375925,7.22187,2769.4,2768.8,3.079602]
[1724596376226,3.61089,2769.4,2768.8,3.079602]
[1724596376990,5.86999,2769.6,2768.8,3.079602]
[1724596376991,7.22142,2769.6,2768.8,3.079602]
[1724596377191,3.61043,2769.8,2768.8,3.079602]
[1724596377391,0.55,2769.7,2769.0,2.4713]
[1724596377590,0.55,2769.7,2769.1,3.6112]
[1724596377818,0.55,2769.7,2768.9,0.3079602]
[1724596377819,7.46,2769.9,2769.4,3.61081]
[1724596378089,5.86911,2770.3,2769.6,2.4713]
[1724596378294,3.60965,2770.4,2769.7,3.61041]
[1724596378498,3.60965,2770.4,2769.7,4.218581]
[1724596378921,3.60972,2770.3,2769.7,4.218581]
[1724596379321,3.60956,2770.5,2769.8,3.61036]
[1724596379603,7.797762,2770.7,2770.1,2.4713]
[1724596379604,7.46,2770.7,2770.1,2.4713]
[1724596379938,7.46,2770.7,2770.2,0.07218989]
[1724596380131,3.98671068,2770.8,2770.2,0.07218989]
[1724596380431,6.49319675,2770.8,2770.2,0.07218989]
[1724596380811,4.1592,2770.7,2770.2,0.07218989]
[1724596381251,3.60934,2770.6,2770.1,2.4713]
[1724596381780,3.60947,2770.5,2769.9,3.61011]
[1724596381955,5.86864,2770.6,2769.9,3.61011]
[1724596382150,3.60934,2770.6,2769.9,4.6401121]
[1724596382882,3.60945,2770.5,2769.9,4.6401121]
[1724596383452,7.21879,2770.6,2769.9,7.1114121]
[1724596384353,3.60961,2770.4,2769.9,2.4713]
[1724596384558,7.21931,2770.4,2769.9,2.4713]
[1724596384958,3.60985,2770.2,2769.7,3.060171]
[1724596385163,3.60985,2770.2,2769.7,2.452]
[1724596387663,3.60985,2770.2,2769.7,6.06249]
[1724596388454,7.21933,2770.4,2769.7,6.06249]
[1724596388773,3.60987,2770.2,2769.6,3.61062]
[1724596388959,8.235721,2770.2,2769.6,3.61062]
[1724596389159,3.60987,2770.2,2769.6,3.61062]
[1724596389753,0.55,2770.1,2769.6,3.61062]
[1724596389954,0.55,2770.1,2769.7,3.61048]
[1724596390193,0.55,2770.2,2769.6,3.61054]
[1724596390347,0.55,2770.2,2769.7,3.61046]
[1724596390698,0.55,2770.2,2769.8,2.452]
[1724596390850,0.55,2770.2,2769.8,6.06236]
[1724596391191,0.55,2770.4,2769.8,6.06236]
[1724596391398,0.55,2770.4,2769.9,3.61022]
[1724596391613,0.55,2770.5,2770.0,3.61009]
[1724596392075,4.15946,2770.5,2769.9,3.61023]
[1724596392259,2.3896,2770.7,2770.1,3.60996]
[1724596392460,3.60913,2770.8,2770.2,3.60975]
[1724596392658,3.60913,2770.8,2770.2,7.21952]
[1724596392969,3.60913,2770.8,2770.2,3.60975]
[1724596393498,5.99842,2771.0,2770.4,3.60957]
[1724596395265,5.99842,2771.0,2770.2,7.2195]
[1724596395464,3.60907,2770.8,2770.2,3.60975]
[1724596395659,3.60907,2770.8,2770.0,6.06207]
[1724596395857,3.60933,2770.6,2770.0,6.06207]
[1724596396307,2.3113,2770.5,2770.0,3.61007]
[1724596396560,2.3113,2770.5,2769.9,1.039469]
[1724596396759,3.6096,2770.4,2769.7,3.1711]
[1724596397058,3.6096,2770.4,2769.8,3.61026]
[1724596397204,3.60976,2770.3,2769.7,2.449]
[1724596397407,3.60987,2770.2,2769.7,2.449]
[1724596397608,3.60987,2770.2,2769.6,7.2211]
[1724596397847,3.60987,2770.2,2769.7,0.96701]
[1724596398110,3.60971,2770.3,2769.7,4.57749]
[1724596398310,7.21953,2770.3,2769.7,0.96701]
[1724596398728,0.55,2770.2,2769.6,7.22107]
[1724596398962,0.55,2770.2,2769.7,3.61048]
[1724596399174,0.55,2770.2,2769.8,3.61035]
[1724596399516,0.55,2770.4,2769.8,3.61035]
[1724596400142,4.15959,2770.4,2769.8,3.61035]
[1724596400344,4.15959,2770.4,2769.8,4.332438]
[1724596400544,0.55,2770.4,2769.8,4.332438]
[1724596400738,0.55,2770.4,2769.9,3.61013]
[1724596400975,0.55,2770.4,2769.9,6.05913]
[1724596402069,7.21878,2770.6,2770.0,3.61001]
[1724596402281,3.60946,2770.5,2770.0,3.61001]
[1724596402426,3.60946,2770.5,2769.9,2.449]
[1724596402622,3.60946,2770.5,2769.9,3.1271398]
[1724596402962,2.3113,2770.3,2769.6,3.61058]
[1724596403160,3.60986,2770.2,2769.6,3.61058]
[1724596403677,3.60986,2770.2,2769.5,2.449]
[1724596403894,3.60986,2770.2,2769.5,6.05967]
[1724596404053,3.60986,2770.2,2769.6,3.61061]
[1724596404255,3.60986,2770.2,2769.6,8.188201]
[1724596404661,3.60986,2770.2,2769.6,4.577591]
[1724596404868,3.60986,2770.2,2769.6,8.188131]
[1724596405093,3.60986,2770.2,2769.6,4.577581]
[1724596405635,3.60986,2770.2,2769.6,8.188121]
[1724596405835,2.3113,2770.3,2769.8,3.61035]
[1724596407513,3.60963,2770.4,2769.8,3.61028]
[1724596411971,3.60974,2770.3,2769.8,3.61028]
[1724596417082,3.60974,2770.3,2769.8,5.96078]
[1724596418485,3.60974,2770.3,2769.7,1.0637121]
[1724596418660,3.60974,2770.3,2769.7,4.6741221]
[1724596419293,3.60974,2770.3,2769.8,1.06351721]
[1724596419984,3.60974,2770.3,2769.7,3.61041]
[1724596420357,3.60992,2770.2,2769.6,2.3505]
[1724596420756,3.60992,2770.2,2769.6,5.96111]
[1724596421826,3.61032,2769.9,2769.3,2.3505]
[1724596422118,3.61032,2769.9,2769.0,4.74001369]
[1724596422119,3.61057,2769.7,2769.0,6.50155523]
[1724596422257,3.61057,2769.7,2769.0,9.57312]
[1724596422458,3.61057,2769.7,2769.0,9.57313]
[1724596422690,3.61057,2769.7,2769.1,3.61126]
[1724596422892,3.61057,2769.7,2769.1,1.0633476]
[1724596424188,3.61057,2769.7,2769.1,4.6745576]
[1724596425061,7.22118,2769.7,2769.1,1.0633476]
[1724596425258,2.3357,2769.8,2768.8,4.36407579]
[1724596425259,3.61096,2769.4,2768.8,6.02056]
[1724596425460,6.03183,2769.3,2768.6,6.56063523]
[1724596425695,3.61118,2769.2,2768.6,6.0209]
[1724596425903,3.61118,2769.2,2768.7,1.39006352]
[1724596427015,3.61118,2769.2,2768.6,2.409]
[1724596428410,7.22244,2769.2,2768.6,2.409]
[1724596428609,3.61129,2769.1,2768.6,2.409]
[1724596430779,3.6115,2769.0,2768.3,2.409]
[1724596430926,3.6115,2769.0,2768.3,3.011141]
[1724596430927,3.61162,2768.9,2768.3,3.011141]
[1724596431286,3.6115,2769.0,2768.3,3.011141]
[1724596431943,3.61157,2768.9,2768.3,6.623441]
[1724596432147,3.61157,2768.9,2768.3,3.011141]
[1724596432348,3.6118,2768.8,2768.4,0.6623491]
[1724596432558,3.6118,2768.8,2768.3,2.409]
[1724596432774,3.61181,2768.7,2768.2,3.61235]
[1724596432974,6.03235,2768.9,2768.2,3.61235]
[1724596433477,3.61165,2768.9,2768.2,3.61235]
[1724596433640,3.61165,2768.9,2768.2,7.22471]
[1724596433895,3.61165,2768.9,2768.3,0.963371]
[1724596434459,3.61165,2768.9,2768.3,4.575681]
[1724596435646,3.61195,2768.6,2768.3,0.963371]
[1724596435966,3.61195,2768.6,2768.1,2.409]
[1724596436834,3.61195,2768.6,2768.1,6.02157]
[1724596437071,3.61195,2768.6,2768.1,2.409]
[1724596437859,6.03252,2768.7,2768.1,6.02154]
[1724596438071,3.61171,2768.8,2768.2,0.963416]
[1724596438651,7.22349,2768.8,2768.2,0.963416]
[1724596439270,3.61171,2768.8,2768.2,0.963416]
[1724596439585,3.61171,2768.8,2768.2,4.575856]
[1724596439891,3.61147,2769.0,2768.4,2.409]
[1724596440187,4.16161,2768.9,2768.4,3.4687166]
[1724596440496,3.61167,2768.8,2768.4,3.4687166]
[1724596440638,3.61167,2768.8,2768.4,2.409]
[1724596440841,7.22297,2769.0,2768.4,2.409]
[1724596441041,3.61147,2769.0,2768.4,2.409]
[1724596441344,3.61147,2769.0,2768.5,3.61205]
[1724596441560,7.22247,2769.2,2768.7,2.409]
[1724596441775,4.16132,2769.1,2768.7,2.409]
[1724596441935,3.61132,2769.1,2768.7,2.409]
[1724596442131,3.61121,2769.2,2768.7,2.409]
[1724596442549,7.22246,2769.2,2768.7,2.409]
[1724596442782,3.61121,2769.2,2768.7,2.409]
[1724596442981,3.61121,2769.2,2768.7,3.0713025]
[1724596443732,7.22246,2769.2,2768.7,3.0713025]
[1724596443937,3.61121,2769.2,2768.7,3.0713025]
[1724596444766,7.22245,2769.2,2768.7,3.0713025]
[1724596446387,3.61131,2769.1,2768.7,3.0713025]
[1724596446602,3.61131,2769.1,2768.7,2.409]
[1724596446765,7.22244,2769.2,2768.7,2.409]
[1724596446950,3.6113,2769.1,2768.7,2.409]
[1724596447157,3.61121,2769.2,2768.4,7.22417]
[1724596447158,3.61121,2769.2,2768.5,2.3714]
[1724596447351,3.61148,2769.0,2768.5,2.3714]
[1724596447562,3.61148,2769.0,2768.6,0.598348]
[1724596449291,3.61122,2769.2,2768.6,4.210258]
[1724596449490,7.22192,2769.4,2768.7,5.98311]
[1724596449734,4.16103,2769.3,2768.7,5.98311]
[1724596450858,3.61115,2769.2,2768.7,5.98311]
[1724596451146,3.61115,2769.2,2768.7,2.3714]
[1724596451353,3.61115,2769.2,2768.7,3.0295638]
[1724596454355,0.55,2769.3,2768.7,6.6412738]
[1724596454562,4.16102,2769.3,2768.7,6.6412738]
[1724596455849,3.61117,2769.2,2768.7,3.0295638]
[1724596456377,0.55,2769.3,2768.7,6.6412738]
[1724596456667,0.55,2769.3,2768.8,1.02531238]
[1724596457169,4.16102,2769.3,2768.8,1.02531238]
[1724596458148,3.61115,2769.2,2768.8,1.02531238]
[1724596458362,3.61115,2769.2,2768.7,2.3714]
[1724596459270,3.61129,2769.1,2768.7,2.3714]
[1724596459909,4.16113,2769.3,2768.7,2.3714]
[1724596460365,4.16113,2769.3,2768.7,5.98312]
[1724596463229,7.22238,2769.2,2768.7,2.3714]
[1724596463437,3.61115,2769.2,2768.7,2.3714]
[1724596464331,3.61128,2769.1,2768.7,2.3714]
[1724596465067,0.55,2769.3,2768.7,2.3714]
[1724596466171,3.61117,2769.2,2768.7,2.3714]
[1724596467442,3.61128,2769.1,2768.7,2.3714]
[1724596469631,3.61117,2769.2,2768.7,2.3714]
[1724596469632,7.22241,2769.2,2768.7,2.3714]
[1724596470032,3.61117,2769.2,2768.7,2.3714]
[1724596470336,7.2224,2769.2,2768.7,2.3714]
[1724596470531,3.61117,2769.2,2768.7,2.3714]
[1724596473769,1.26353472,2769.1,2768.7,2.3714]
[1724596474078,4.87488472,2769.1,2768.7,2.3714]
[1724596474223,3.61154,2768.9,2768.5,2.2879]
[1724596476058,4.87488472,2769.1,2768.5,2.2879]
[1724596476362,4.16109,2769.3,2768.5,2.2899933]
[1724596476561,4.16109,2769.3,2768.7,3.6117]
[1724596477022,3.15902916,2769.4,2768.8,7.22318]
[1724596477226,1.26353472,2769.4,2768.9,3.6115]
[1724596477442,5.50628444,2769.5,2769.0,2.2879]
[1724596477674,3.61079,2769.5,2769.0,2.2879]
[1724596478951,1.89532176,2769.6,2769.1,1.26353472]
[1724596479272,5.50562176,2769.9,2769.4,2.2879]
[1724596479440,3.6103,2769.9,2769.4,2.2879]
[1724596480568,7.22063,2769.9,2769.4,2.2879]
[1724596480764,7.22063,2769.9,2769.4,2.87779]
[1724596481375,1.89532176,2770.0,2769.4,2.87779]
[1724596481674,7.22008,2770.1,2769.6,2.2879]
[1724596481675,3.61,2770.1,2769.6,2.2879]
[1724596483577,5.50506176,2770.3,2769.6,5.89852]
[1724596483740,3.60992,2770.2,2769.7,0.950923]
[1724596484505,7.21956,2770.3,2769.8,2.4986]
[1724596484642,3.60988,2770.2,2769.8,2.4986]
[1724596488068,3.60988,2770.2,2769.8,2.57079993]
[1724596488291,3.60988,2770.2,2769.8,2.4986]
[1724596488441,3.60988,2770.2,2769.8,3.2046073]
[1724596491478,3.60963,2770.4,2769.8,3.2046073]
[1724596491479,7.21934,2770.4,2769.8,3.2046073]
[1724596491688,0.55,2770.3,2769.8,3.2046073]
[1724596492737,4.15972,2770.3,2769.8,3.2046073]
[1724596492945,3.60972,2770.3,2769.8,6.8149573]
[1724596493284,3.60955,2770.5,2769.9,1.04253573]
[1724596493496,0.55,2770.4,2769.9,1.04253573]
[1724596493660,3.60955,2770.5,2770.0,2.4986]
[1724596493867,14.67882,2770.6,2770.0,2.4986]
[1724596494466,3.60949,2770.5,2770.0,2.4986]
[1724596494688,11.06939,2770.6,2769.7,3.61044]
[1724596494689,3.60966,2770.4,2769.7,2.4986]
[1724596494889,3.60992,2770.2,2769.7,2.4986]
[1724596496063,3.61011,2770.0,2769.7,2.4986]
[1724596496267,3.61011,2770.0,2769.3,3.61091]
[1724596496268,3.61033,2769.9,2769.3,3.61091]
[1724596496786,2.4451,2770.3,2769.1,6.10976]
[1724596496787,7.22088,2769.8,2769.1,6.10976]
[1724596497089,3.6104,2769.8,2769.1,6.10976]
[1724596497297,3.6104,2769.8,2769.2,3.61108]
[1724596498161,3.6104,2769.8,2769.3,3.611]
[1724596498374,3.6104,2769.8,2769.3,4.583081]
[1724596499052,3.61064,2769.6,2769.1,6.10978]
[1724596499249,3.61064,2769.6,2769.1,2.4986]
[1724596503160,6.0559,2769.5,2768.9,3.61145]
[1724596503380,6.0559,2769.5,2768.9,7.2229]
[1724596503591,3.6108,2769.5,2769.0,4.58354]
[1724596503782,1.26311149,2769.6,2769.0,4.58354]
[1724596504266,8.48448149,2769.6,2769.0,0.97215]
[1724596504659,4.87375149,2769.6,2769.0,0.97215]
[1724596505665,8.48447149,2769.6,2769.0,0.97215]
[1724596505975,4.87375149,2769.6,2769.0,0.97215]
[1724596506177,4.87375149,2769.6,2769.1,0.819503]
[1724596507094,8.48448149,2769.6,2769.1,0.819503]
[1724596507301,3.61079,2769.5,2769.1,0.819503]
[1724596507499,3.61079,2769.5,2768.9,3.61142]
[1724596509406,2.4451,2769.7,2768.8,2.4986]
[1724596509407,1.26311149,2769.2,2768.8,2.4986]
[1724596509709,1.26311149,2769.2,2768.7,3.61174]
[1724596509710,4.87426149,2769.2,2768.7,3.61174]
[1724596509909,4.87426149,2769.2,2768.7,0.963453]
[1724596511171,2.274,2769.3,2768.7,4.575203]
[1724596511408,1.26311149,2769.4,2768.7,4.575203]
[1724596511573,1.26311149,2769.4,2768.9,3.61153]
[1724596512227,5.88485,2769.5,2768.9,3.61153]
[1724596512440,5.88485,2769.5,2768.9,4.55651445]
[1724596512441,4.16091,2769.4,2768.9,4.55651445]
[1724596512729,4.16091,2769.4,2768.9,0.94498445]
[1724596513431,4.16091,2769.4,2768.9,0.94498445]
[1724596513626,3.6107,2769.6,2769.0,2.4108]
[1724596513803,7.22142,2769.6,2769.0,6.02213]